[Event "Accentus Young Masters 2019"]
[Site "Bad Ragaz"]
[Date "2019.02.27"]
[Round "1.1"]
[White "Alboronz Cabrera, Carlos Daniel"]
[Black "Wagner, Dennis"]
[Result "1/2-1/2"]
[ECO "A35"]
[WhiteElo "2577"]
[BlackElo "2579"]
[Annotator "RC"]
[PlyCount "59"]
[EventDate "2019.02.27"]
[EventType "tourn"]
[EventCountry "SUI"]
[SourceTitle "playchess.com"]
[Source "ChessBase"]
[SourceQuality "1"]
[TimeControl "40/5400+30:1800+30"]

1. Nf3 {[%emt 0:00:00]} Nf6 {[%emt 0:00:00]} 2. c4 {[%emt 0:00:00]} c5 {[%emt 0:00:00]} 3. Nc3 {[%emt 0:00:30]} Nc6 {[%emt 0:00:23]} 4. g3 {[%emt 0:00:26]} d5 {[%emt 0:00:17]} 5. d4 {[%emt 0:00:06]} cxd4 {[%emt 0:00:58]} 6. Nxd4 {[%emt 0:00:08]} dxc4 {[%emt 0:00:10]} 7. Nxc6 {[%emt 0:00:06]} Qxd1+ {[%emt 0:00:09]} 8. Nxd1 {[%emt 0:00:04]} bxc6 {[%emt 0:00:09]} 9. Bg2 {[%emt 0:01:41]} Nd5 {[%emt 0:00:18]} 10. Ne3 {[%emt 0:04:23]} e6 {[%emt 0:00:30]} 11. Nxc4 {[%emt 0:03:07]} Ba6 {[%emt 0:00:15]} 12. b3 {[%emt 0:07:42]} Bb4+ {[%emt 0:00:09]} 13. Bd2 {[%emt 0:00:08]} Ke7 {[%emt 0:00:12]} 14. Bxb4+ {[%emt 0:03:24]} Nxb4 {[%emt 0:00:09]} 15. O-O {[%emt 0:02:16]} Bxc4 {[%emt 0:02:33]} 16. bxc4 {[%emt 0:00:07]} Rab8 {[%emt 0:05:52]} 17. a3 {[%emt 0:10:05]} Na6 {[%emt 0:00:23]} 18. Bxc6 {[%emt 0:01:37]} Rhc8 {[%emt 0:00:37]} 19. Be4 {[%emt 0:00:46]} Rxc4 {[%emt 0:05:28]} 20. Bd3 {[%emt 0:00:26]} Rc6 {[%emt 0:13:33]} 21. Rfc1 {[%emt 0:13:59]} Rbc8 {[%emt 0:00:56]} 22. Rxc6 {[%emt 0:01:50]} Rxc6 {[%emt 0:00:02]} 23. Rb1 {[%emt 0:02:30]} Nc5 {[%emt 0:01:57]} 24. Rc1 {[%emt 0:00:47]} f5 {[%emt 0:20:35]} 25. Bb5 {[%emt 0:02:20]} Rc7 {[%emt 0:00:06]} 26. Kg2 {[%emt 0:05:18]} Kd6 {[%emt 0:17:13]} 27. Rd1+ {[%emt 0:00:23]} Ke7 {[%emt 0:00:04]} 28. Rc1 {[%emt 0:06:12]} Kd6 {[%emt 0:00:08]} 29. Rd1+ {[%emt 0:00:38]} Ke7 {[%emt 0:00:06]} 30. Rc1 {[%emt 0:00:07]} 1/2-1/2

[Event "Accentus Young Masters 2019"]
[Site "Bad Ragaz"]
[Date "2019.02.27"]
[Round "1.3"]
[White "Stijve, Theo"]
[Black "Studer, Noel"]
[Result "0-1"]
[ECO "C60"]
[WhiteElo "2339"]
[BlackElo "2494"]
[Annotator "ChessBase"]
[PlyCount "66"]
[EventDate "2019.02.27"]
[EventType "tourn"]
[EventCountry "SUI"]
[SourceTitle "playchess.com"]
[Source "ChessBase"]
[SourceQuality "1"]
[TimeControl "40/5400+30:1800+30"]

1. e4 {[%emt 0:00:02]} e5 {[%emt 0:00:13]} 2. Nf3 {[%emt 0:00:15]} Nc6 {[%emt 0:00:06]} 3. Bb5 {[%emt 0:00:11]} Nge7 {[%emt 0:00:11]} 4. Nc3 {[%emt 0:00:29]} d6 {[%emt 0:00:18]} 5. O-O {[%emt 0:09:04]} a6 {[%emt 0:00:32]} 6. Ba4 {[%emt 0:02:24]} Bd7 {[%emt 0:03:19]} 7. a3 {[%emt 0:09:24]} g6 {[%emt 0:01:15]} 8. d4 {[%emt 0:03:41]} Bg7 {[%emt 0:04:09]} 9. dxe5 {[%emt 0:10:04]} Nxe5 {[%emt 0:01:04]} 10. Nxe5 {[%emt 0:01:27]} Bxe5 {[%emt 0:00:09]} 11. Bxd7+ {[%emt 0:04:56]} Qxd7 {[%emt 0:00:07]} 12. Be3 {[%emt 0:05:32]} Nc6 {[%emt 0:13:56]} 13. f4 {[%emt 0:03:44]} Bxc3 {[%emt 0:02:37]} 14. bxc3 {[%emt 0:00:08]} f5 {[%emt 0:00:08]} 15. Rb1 {[%emt 0:15:10]} O-O-O {[%emt 0:03:08]} 16. Qd3 {[%emt 0:04:48]} fxe4 {[%emt 0:02:24]} 17. Qxe4 {[%emt 0:00:18]} Rde8 {[%emt 0:00:10]} 18. Qd3 {[%emt 0:01:57]} Qf5 {[%emt 0:00:26]} 19. Qxf5+ {[%emt 0:09:26]} gxf5 {[%emt 0:00:06]} 20. Rf3 {[%emt 0:00:16]} Re4 {[%emt 0:01:01]} 21. Rd1 {[%emt 0:02:53]} Na5 {[%emt 0:11:21]} 22. Rh3 {[%emt 0:10:07]} Nc4 {[%emt 0:26:24]} 23. Bd4 {[%emt 0:01:59]} Rhe8 {[%emt 0:00:04]} 24. Rxh7 {[%emt 0:00:56]} Nxa3 {[%emt 0:00:08]} 25. Rd2 {[%emt 0:02:24]} Re1+ {[%emt 0:02:14]} 26. Kf2 {[%emt 0:00:10]} Nc4 {[%emt 0:01:05]} 27. Rd3 {[%emt 0:00:42]} a5 {[%emt 0:00:36]} 28. Be5 {[%emt 0:01:00]} Rc1 {[%emt 0:00:23]} 29. Rd4 {[%emt 0:00:30]} b5 {[%emt 0:00:12]} 30. Bf6 {[%emt 0:00:27]} Rxc2+ {[%emt 0:00:03]} 31. Kg3 {[%emt 0:00:10]} Re3+ {[%emt 0:00:33]} 32. Kh4 {[%emt 0:00:04]} Rxg2 {[%emt 0:00:05]} 33. Rh8+ {[%emt 0:01:06]} Kb7 {[%emt 0:00:04]} 0-1

[Event "Accentus Young Masters 2019"]
[Site "Bad Ragaz"]
[Date "2019.02.27"]
[Round "1.5"]
[White "Engel, Luis"]
[Black "Kurmann, Oliver"]
[Result "1/2-1/2"]
[ECO "C77"]
[WhiteElo "2469"]
[BlackElo "2454"]
[Annotator "ChessBase"]
[PlyCount "81"]
[EventDate "2019.02.27"]
[EventType "tourn"]
[EventCountry "SUI"]
[SourceTitle "playchess.com"]
[Source "ChessBase"]
[SourceQuality "1"]
[TimeControl "40/5400+30:1800+30"]

1. e4 {[%emt 0:00:00]} e5 {[%emt 0:00:00]} 2. Nf3 {[%emt 0:00:00]} Nc6 {[%emt 0:00:00]} 3. Bb5 {[%emt 0:00:00]} a6 {[%emt 0:00:00]} 4. Ba4 {[%emt 0:00:00]} Nf6 {[%emt 0:00:04]} 5. d3 {[%emt 0:00:01]} d6 {[%emt 0:08:37]} 6. c3 {[%emt 0:00:40]} Bd7 {[%emt 0:13:16]} 7. O-O {[%emt 0:02:40]} g6 {[%emt 0:00:05]} 8. h3 {[%emt 0:06:17]} Bg7 {[%emt 0:00:17]} 9. Be3 {[%emt 0:00:10]} O-O {[%emt 0:02:21]} 10. Nbd2 {[%emt 0:00:19]} Re8 {[%emt 0:04:23]} 11. Re1 {[%emt 0:03:05]} h6 {[%emt 0:02:12]} 12. Nf1 {[%emt 0:05:40]} d5 {[%emt 0:21:22]} 13. Ng3 {[%emt 0:08:21]} dxe4 {[%emt 0:18:11]} 14. dxe4 {[%emt 0:00:44]} b5 {[%emt 0:00:25]} 15. Bc2 {[%emt 0:05:55]} Na5 {[%emt 0:00:10]} 16. Qc1 {[%emt 0:03:23]} Kh7 {[%emt 0:01:19]} 17. Rd1 {[%emt 0:07:51]} Qe7 {[%emt 0:08:19]} 18. b4 {[%emt 0:06:14]} Nb7 {[%emt 0:00:21]} 19. Bb3 {[%emt 0:02:38]} a5 {[%emt 0:02:01]} 20. Ne1 {[%emt 0:06:39]} a4 {[%emt 0:02:32]} 21. Bc2 {[%emt 0:00:06]} c5 {[%emt 0:00:06]} 22. Nd3 {[%emt 0:08:44]} c4 {[%emt 0:00:14]} 23. Nc5 {[%emt 0:00:20]} Bc6 {[%emt 0:00:08]} 24. f3 {[%emt 0:05:42]} Rad8 {[%emt 0:02:07]} 25. Rxd8 {[%emt 0:02:34]} Rxd8 {[%emt 0:00:12]} 26. Qe1 {[%emt 0:00:50]} Nd7 {[%emt 0:06:03]} 27. Nxd7 {[%emt 0:03:11]} Rxd7 {[%emt 0:00:08]} 28. Qf2 {[%emt 0:01:14]} Nd8 {[%emt 0:01:05]} 29. Rf1 {[%emt 0:01:25]} Kg8 {[%emt 0:02:33]} 30. Ne2 {[%emt 0:02:06]} Ne6 {[%emt 0:01:19]} 31. a3 {[%emt 0:01:06]} Rd8 {[%emt 0:01:51]} 32. Qg3 {[%emt 0:01:52]} h5 {[%emt 0:00:31]} 33. Qe1 {[%emt 0:07:13]} Bf6 {[%emt 0:02:02]} 34. Kh1 {[%emt 0:03:25]} Bg5 {[%emt 0:00:59]} 35. Qc1 {[%emt 0:00:15]} h4 {[%emt 0:00:32]} 36. Bxg5 {[%emt 0:05:13]} Nxg5 {[%emt 0:00:07]} 37. Qe3 {[%emt 0:00:21]} Ne6 {[%emt 0:00:40]} 38. Rd1 {[%emt 0:01:19]} Rxd1+ {[%emt 0:01:08]} 39. Bxd1 {[%emt 0:00:06]} Qd6 {[%emt 0:01:05]} 40. Bc2 {[%emt 0:00:08]} g5 {[%emt 0:00:17]} 41. Kg1 {[%emt 0:31:16]} 1/2-1/2

[Event "Accentus Young Masters 2019"]
[Site "Bad Ragaz"]
[Date "2019.02.28"]
[Round "2.2"]
[White "Yankelevich, Lev"]
[Black "Engel, Luis"]
[Result "1-0"]
[ECO "E06"]
[WhiteElo "2445"]
[BlackElo "2469"]
[Annotator "RC"]
[PlyCount "99"]
[EventDate "2019.02.27"]
[EventType "tourn"]
[EventCountry "SUI"]
[SourceTitle "playchess.com"]
[Source "ChessBase"]
[SourceQuality "1"]
[TimeControl "40/5400+30:1800+30"]

1. d4 {[%emt 0:00:00]} Nf6 {[%emt 0:00:00]} 2. c4 {[%emt 0:00:00]} e6 {[%emt 0:00:00]} 3. Nf3 {[%emt 0:00:00]} d5 {[%emt 0:00:00]} 4. g3 {[%emt 0:00:00]} Be7 {[%emt 0:00:00]} 5. Bg2 {[%emt 0:01:17]} O-O {[%emt 0:00:00]} 6. O-O {[%emt 0:00:20]} dxc4 {[%emt 0:00:03]} 7. Ne5 {[%emt 0:00:04]} Nc6 {[%emt 0:00:07]} 8. Bxc6 {[%emt 0:03:17]} bxc6 {[%emt 0:00:06]} 9. Nxc6 {[%emt 0:00:03]} Qe8 {[%emt 0:00:08]} 10. Nxe7+ {[%emt 0:00:04]} Qxe7 {[%emt 0:00:06]} 11. b3 {[%emt 0:00:14]} cxb3 {[%emt 0:00:23]} 12. Qxb3 {[%emt 0:00:53]} Rd8 {[%emt 0:02:34]} 13. Rd1 {[%emt 0:04:29]} Ba6 {[%emt 0:07:46]} 14. Nc3 {[%emt 0:00:07]} Nd5 {[%emt 0:02:44]} 15. Ba3 {[%emt 0:14:27]} Qg5 {[%emt 0:07:50]} 16. Nxd5 {[%emt 0:03:15]} exd5 {[%emt 0:01:41]} 17. Qf3 {[%emt 0:02:52]} Bc4 {[%emt 0:06:52]} 18. h4 {[%emt 0:04:17]} Qg6 {[%emt 0:01:24]} 19. Rd2 {[%emt 0:01:29]} Re8 {[%emt 0:02:37]} 20. Bc5 {[%emt 0:09:51]} Rab8 {[%emt 0:06:52]} 21. Kg2 {[%emt 0:13:04]} Qa6 {[%emt 0:05:02]} 22. Re1 {[%emt 0:02:01]} Qa5 {[%emt 0:05:03]} 23. Red1 {[%emt 0:02:32]} Bxa2 {[%emt 0:10:14]} 24. Qa3 {[%emt 0:08:37]} Qxa3 {[%emt 0:00:42]} 25. Bxa3 {[%emt 0:00:03]} Bc4 {[%emt 0:00:58]} 26. Bc5 {[%emt 0:02:34]} Bxe2 {[%emt 0:06:15]} 27. Bxa7 {[%emt 0:00:10]} Rb3 {[%emt 0:00:35]} 28. Rc1 {[%emt 0:00:37]} Bf3+ {[%emt 0:00:14]} 29. Kh2 {[%emt 0:00:25]} h6 {[%emt 0:10:08]} 30. Rdc2 {[%emt 0:03:41]} g5 {[%emt 0:00:43]} 31. Rxc7 {[%emt 0:00:17]} Re2 {[%emt 0:01:02]} 32. Rf1 {[%emt 0:09:20]} Re4 {[%emt 0:04:16]} 33. Rc8+ {[%emt 0:01:17]} Kh7 {[%emt 0:02:40]} 34. Rfc1 {[%emt 0:01:26]} Re2 {[%emt 0:03:16]} 35. Rf1 {[%emt 0:01:28]} gxh4 {[%emt 0:00:39]} 36. Bb8 {[%emt 0:01:06]} Re4 {[%emt 0:03:46]} 37. Rfc1 {[%emt 0:02:57]} Rxd4 {[%emt 0:04:00]} 38. Rf8 {[%emt 0:00:08]} Rc4 {[%emt 0:04:41]} 39. Re1 {[%emt 0:02:00]} Kg7 {[%emt 0:00:37]} 40. Ree8 {[%emt 0:00:05]} Rc1 {[%emt 0:01:06]} 41. gxh4 {[%emt 0:33:03]} Rh1+ {[%emt 0:04:21]} 42. Kg3 {[%emt 0:00:00]} Rg1+ {[%emt 0:02:41]} 43. Kf4 {[%emt 0:00:00]} Bg2 {[%emt 0:09:52]} 44. Rg8+ {[%emt 0:00:00]} Kh7 {[%emt 0:00:05]} 45. Rh8+ {[%emt 0:00:00]} Kg6 {[%emt 0:00:05]} 46. Reg8+ {[%emt 0:00:00]} Kf6 {[%emt 0:00:09]} 47. Be5+ {[%emt 0:00:00]} Ke6 {[%emt 0:00:09]} 48. Re8+ {[%emt 0:00:00]} Kd7 {[%emt 0:00:05]} 49. Rd8+ {[%emt 0:00:00]} Kc6 {[%emt 0:00:05]} 50. Rxh6+ {[%emt 0:00:00]} 1-0

[Event "Accentus Young Masters 2019"]
[Site "Bad Ragaz"]
[Date "2019.02.28"]
[Round "2.3"]
[White "Studer, Noel"]
[Black "Horvath, Dominik"]
[Result "1-0"]
[ECO "D02"]
[WhiteElo "2494"]
[BlackElo "2419"]
[Annotator "ChessBase"]
[PlyCount "79"]
[EventDate "2019.02.27"]
[EventType "tourn"]
[EventCountry "SUI"]
[SourceTitle "playchess.com"]
[Source "ChessBase"]
[SourceQuality "1"]
[TimeControl "40/5400+30:1800+30"]

1. d4 {[%emt 0:00:00]} d5 {[%emt 0:00:00]} 2. Nf3 {[%emt 0:00:25]} e6 {[%emt 0:00:00]} 3. c4 {[%emt 0:00:05]} a6 {[%emt 0:00:14]} 4. c5 {[%emt 0:03:00]} b6 {[%emt 0:01:25]} 5. cxb6 {[%emt 0:00:05]} c5 {[%emt 0:01:28]} 6. Qb3 {[%emt 0:09:28]} Bb7 {[%emt 0:07:26]} 7. Nc3 {[%emt 0:18:03]} cxd4 {[%emt 0:13:10]} 8. Nxd4 {[%emt 0:03:43]} Bc5 {[%emt 0:13:09]} 9. e3 {[%emt 0:00:19]} Qxb6 {[%emt 0:02:07]} 10. Na4 {[%emt 0:00:10]} Qxb3 {[%emt 0:05:37]} 11. Nxb3 {[%emt 0:00:06]} Bd6 {[%emt 0:10:15]} 12. Bd2 {[%emt 0:06:57]} Nf6 {[%emt 0:08:49]} 13. Nbc5 {[%emt 0:13:20]} Bc6 {[%emt 0:04:21]} 14. Rc1 {[%emt 0:00:52]} Bxa4 {[%emt 0:09:03]} 15. Nxa4 {[%emt 0:00:05]} Nbd7 {[%emt 0:02:07]} 16. Rc6 {[%emt 0:17:17]} Ke7 {[%emt 0:00:04]} 17. Rxa6 {[%emt 0:00:03]} Ne4 {[%emt 0:01:35]} 18. a3 {[%emt 0:01:54]} Rxa6 {[%emt 0:08:52]} 19. Bxa6 {[%emt 0:00:03]} Ndc5 {[%emt 0:00:06]} 20. Nxc5 {[%emt 0:01:18]} Nxc5 {[%emt 0:00:03]} 21. Be2 {[%emt 0:04:16]} Rb8 {[%emt 0:00:31]} 22. b4 {[%emt 0:03:59]} Ne4 {[%emt 0:02:47]} 23. Bc1 {[%emt 0:00:10]} Be5 {[%emt 0:03:24]} 24. Bd3 {[%emt 0:05:54]} Nc3 {[%emt 0:01:22]} 25. Bb2 {[%emt 0:00:53]} Kd6 {[%emt 0:01:30]} 26. g4 {[%emt 0:03:42]} g6 {[%emt 0:01:44]} 27. h4 {[%emt 0:00:56]} h6 {[%emt 0:01:05]} 28. f4 {[%emt 0:00:58]} Bh8 {[%emt 0:00:06]} 29. h5 {[%emt 0:00:05]} g5 {[%emt 0:00:27]} 30. fxg5 {[%emt 0:00:30]} hxg5 {[%emt 0:00:04]} 31. h6 {[%emt 0:00:15]} Be5 {[%emt 0:01:12]} 32. h7 {[%emt 0:00:27]} Rh8 {[%emt 0:00:24]} 33. b5 {[%emt 0:01:00]} Ke7 34. a4 {[%emt 0:00:25]} Ra8 {[%emt 0:01:55]} 35. a5 {[%emt 0:00:05]} Bh8 {[%emt 0:00:11]} 36. b6 {[%emt 0:02:30]} Kd6 {[%emt 0:00:28]} 37. b7 {[%emt 0:00:36]} Rd8 {[%emt 0:00:06]} 38. a6 {[%emt 0:00:34]} Kc7 {[%emt 0:00:06]} 39. Rf1 {[%emt 0:00:10]} Rf8 {[%emt 0:00:11]} 40. Ba3 {[%emt 0:00:04]} 1-0

[Event "Accentus Young Masters 2019"]
[Site "Bad Ragaz"]
[Date "2019.02.28"]
[Round "2.5"]
[White "Albornoz Cabrera, Carlos Daniel"]
[Black "Petrov, Nikita"]
[Result "1/2-1/2"]
[ECO "D37"]
[WhiteElo "2577"]
[BlackElo "2585"]
[Annotator "RC"]
[PlyCount "80"]
[EventDate "2019.02.27"]
[EventType "tourn"]
[EventCountry "SUI"]
[SourceTitle "playchess.com"]
[Source "ChessBase"]
[SourceQuality "1"]
[TimeControl "40/5400+30:1800+30"]

1. Nf3 {[%emt 0:00:00]} d5 {[%emt 0:00:00]} 2. d4 {[%emt 0:00:00]} Nf6 {[%emt 0:00:00]} 3. c4 {[%emt 0:00:00]} e6 {[%emt 0:00:16]} 4. Nc3 {[%emt 0:00:27]} Be7 {[%emt 0:00:31]} 5. Bg5 {[%emt 0:00:00]} Nbd7 {[%emt 0:01:55]} 6. e3 {[%emt 0:00:01]} h6 {[%emt 0:00:34]} 7. Bh4 {[%emt 0:00:06]} O-O {[%emt 0:00:40]} 8. Rc1 {[%emt 0:00:24]} c6 {[%emt 0:05:14]} 9. Bd3 {[%emt 0:01:27]} a6 {[%emt 0:01:49]} 10. cxd5 {[%emt 0:03:44]} exd5 {[%emt 0:01:26]} 11. O-O {[%emt 0:00:18]} Ne4 {[%emt 0:01:59]} 12. Bxe7 {[%emt 0:01:24]} Qxe7 {[%emt 0:00:14]} 13. Bxe4 {[%emt 0:00:28]} dxe4 {[%emt 0:00:06]} 14. Nd2 {[%emt 0:00:05]} Nf6 {[%emt 0:01:14]} 15. Qc2 {[%emt 0:05:03]} Bf5 {[%emt 0:13:47]} 16. Na4 {[%emt 0:07:29]} Nd5 {[%emt 0:05:52]} 17. Nc5 {[%emt 0:04:23]} Rfe8 {[%emt 0:04:13]} 18. a3 {[%emt 0:09:43]} b6 {[%emt 0:11:07]} 19. Na4 {[%emt 0:00:57]} Qg5 {[%emt 0:03:02]} 20. Kh1 {[%emt 0:12:36]} Re6 {[%emt 0:02:51]} 21. Nc3 {[%emt 0:02:21]} Rg6 {[%emt 0:02:36]} 22. Rg1 {[%emt 0:00:39]} Nf6 {[%emt 0:00:28]} 23. Ndxe4 {[%emt 0:12:03]} Nxe4 {[%emt 0:06:05]} 24. Nxe4 {[%emt 0:00:09]} Qh4 {[%emt 0:01:14]} 25. f3 {[%emt 0:00:29]} Re8 {[%emt 0:01:29]} 26. g4 {[%emt 0:06:35]} Bxe4 {[%emt 0:04:54]} 27. fxe4 {[%emt 0:00:23]} Rxg4 {[%emt 0:00:43]} 28. e5 {[%emt 0:03:01]} c5 {[%emt 0:13:10]} 29. Rxg4 {[%emt 0:03:15]} Qxg4 {[%emt 0:00:05]} 30. Qg2 {[%emt 0:00:52]} Qh4 {[%emt 0:07:28]} 31. Rg1 {[%emt 0:02:19]} g6 {[%emt 0:00:19]} 32. Qd5 {[%emt 0:06:03]} Kg7 {[%emt 0:03:11]} 33. Rf1 {[%emt 0:00:37]} Re6 {[%emt 0:01:30]} 34. Qf3 {[%emt 0:02:24]} Qe7 {[%emt 0:00:48]} 35. Qe4 {[%emt 0:00:47]} f6 {[%emt 0:03:51]} 36. exf6+ {[%emt 0:02:55]} Qxf6 {[%emt 0:00:04]} 37. Rxf6 {[%emt 0:00:36]} Rxe4 {[%emt 0:00:04]} 38. Rxb6 {[%emt 0:00:12]} cxd4 {[%emt 0:00:05]} 39. exd4 {[%emt 0:00:27]} Rxd4 {[%emt 0:00:08]} 40. b4 {[%emt 0:00:37]} a5 {[%emt 0:00:38]} 1/2-1/2

[Event "Accentus Young Masters 2019"]
[Site "Bad Ragaz"]
[Date "2019.03.01"]
[Round "3.1"]
[White "Petrov, Nikita"]
[Black "Wagner, Dennis"]
[Result "1/2-1/2"]
[ECO "D37"]
[WhiteElo "2585"]
[BlackElo "2587"]
[Annotator "ChessBase"]
[PlyCount "117"]
[EventDate "2019.02.27"]
[EventType "tourn"]
[EventCountry "SUI"]
[SourceTitle "playchess.com"]
[Source "ChessBase"]
[SourceQuality "1"]
[TimeControl "40/5400+30:1800+30"]

1. Nf3 {[%emt 0:00:00]} d5 {[%emt 0:00:02]} 2. d4 {[%emt 0:00:00]} Nf6 {[%emt 0:00:09]} 3. c4 {[%emt 0:00:00]} e6 {[%emt 0:00:08]} 4. Nc3 {[%emt 0:00:19]} Nbd7 {[%emt 0:00:22]} 5. Bf4 {[%emt 0:08:10]} dxc4 {[%emt 0:00:10]} 6. e3 {[%emt 0:00:10]} Nb6 {[%emt 0:00:15]} 7. Bxc4 {[%emt 0:02:00]} Nxc4 {[%emt 0:00:09]} 8. Qa4+ {[%emt 0:00:04]} c6 {[%emt 0:00:08]} 9. Qxc4 {[%emt 0:00:08]} Nd5 {[%emt 0:00:07]} 10. O-O {[%emt 0:04:34]} Nxf4 {[%emt 0:00:08]} 11. exf4 {[%emt 0:00:05]} Be7 {[%emt 0:00:10]} 12. Rad1 {[%emt 0:02:56]} O-O {[%emt 0:00:45]} 13. Rfe1 {[%emt 0:00:29]} Qb6 {[%emt 0:01:18]} 14. Qe2 {[%emt 0:11:59]} Rd8 {[%emt 0:01:37]} 15. f5 {[%emt 0:20:11]} Qc7 {[%emt 0:38:57]} 16. d5 {[%emt 0:14:37]} cxd5 {[%emt 0:00:08]} 17. Nxd5 {[%emt 0:00:06]} exd5 {[%emt 0:00:10]} 18. Qxe7 {[%emt 0:00:07]} Qxe7 {[%emt 0:00:05]} 19. Rxe7 {[%emt 0:00:04]} Bxf5 {[%emt 0:00:14]} 20. Rxb7 {[%emt 0:00:07]} Rdb8 {[%emt 0:05:20]} 21. Rxb8+ {[%emt 0:01:17]} Rxb8 {[%emt 0:00:02]} 22. b3 {[%emt 0:06:45]} Rc8 {[%emt 0:03:26]} 23. Kf1 {[%emt 0:05:49]} Be6 {[%emt 0:00:28]} 24. Nd4 {[%emt 0:00:47]} Kf8 {[%emt 0:02:41]} 25. Ke2 {[%emt 0:00:54]} Ke7 {[%emt 0:00:37]} 26. Kd2 {[%emt 0:00:30]} a5 {[%emt 0:36:03]} 27. Rc1 {[%emt 0:05:48]} Rxc1 {[%emt 0:00:05]} 28. Kxc1 {[%emt 0:00:04]} Bd7 {[%emt 0:00:05]} 29. Kd2 {[%emt 0:00:47]} Kd6 {[%emt 0:00:03]} 30. Kc3 {[%emt 0:01:59]} Kc5 {[%emt 0:00:07]} 31. a3 {[%emt 0:00:34]} g5 {[%emt 0:00:35]} 32. b4+ {[%emt 0:02:20]} axb4+ {[%emt 0:00:05]} 33. axb4+ {[%emt 0:00:03]} Kd6 {[%emt 0:01:30]} 34. Nf3 {[%emt 0:01:27]} f6 {[%emt 0:00:10]} 35. Kd4 {[%emt 0:00:23]} h5 {[%emt 0:10:03]} 36. g3 {[%emt 0:05:13]} Bg4 {[%emt 0:00:39]} 37. Nd2 {[%emt 0:00:22]} h4 {[%emt 0:00:18]} 38. gxh4 {[%emt 0:01:32]} gxh4 {[%emt 0:00:01]} 39. Nf1 {[%emt 0:00:31]} Kc6 {[%emt 0:00:16]} 40. Ne3 {[%emt 0:00:25]} Bf3 {[%emt 0:00:34]} 41. Nf5 {[%emt 0:34:33]} h3 {[%emt 0:31:03]} 42. Ke3 {[%emt 0:00:00]} Bg4 {[%emt 0:00:00]} 43. Nd4+ {[%emt 0:00:00]} Kd6 {[%emt 0:00:00]} 44. f4 {[%emt 0:00:00]} Bd7 {[%emt 0:00:00]} 45. Kf3 {[%emt 0:00:00]} Ke7 {[%emt 0:00:00]} 46. Kg3 {[%emt 0:00:00]} Kd6 {[%emt 0:00:00]} 47. Kh4 {[%emt 0:00:00]} Ke7 {[%emt 0:00:00]} 48. Kh5 {[%emt 0:00:00]} Kf7 {[%emt 0:00:00]} 49. Kh6 {[%emt 0:00:00]} Bc8 {[%emt 0:00:00]} 50. f5 {[%emt 0:00:00]} Bd7 {[%emt 0:00:00]} 51. b5 {[%emt 0:00:00]} Bc8 {[%emt 0:00:00]} 52. b6 {[%emt 0:00:00]} Ke7 {[%emt 0:00:00]} 53. Kg7 {[%emt 0:01:10]} Bb7 {[%emt 0:00:00]} 54. Kg6 {[%emt 0:02:01]} Ba8 {[%emt 0:00:00]} 55. Nb3 {[%emt 0:01:25]} Bb7 {[%emt 0:00:00]} 56. Nd4 {[%emt 0:03:06]} Ba8 {[%emt 0:00:00]} 57. Kg7 {[%emt 0:00:34]} Bb7 {[%emt 0:00:00]} 58. Ne6 {[%emt 0:00:24]} Ba8 {[%emt 0:00:16]} 59. Nd4 {[%emt 0:01:02]} 1/2-1/2

[Event "Accentus Young Masters 2019"]
[Site "Bad Ragaz"]
[Date "2019.03.01"]
[Round "3.2"]
[White "Stijve, Theo"]
[Black "Albornoz Cabrera, Carlos Daniel"]
[Result "1/2-1/2"]
[ECO "B90"]
[WhiteElo "2333"]
[BlackElo "2577"]
[Annotator "ChessBase"]
[PlyCount "125"]
[EventDate "2019.02.27"]
[EventType "tourn"]
[EventCountry "SUI"]
[SourceTitle "playchess.com"]
[Source "ChessBase"]
[SourceQuality "1"]
[TimeControl "40/5400+30:1800+30"]

1. e4 {[%emt 0:00:09]} c5 {[%emt 0:00:00]} 2. Nf3 {[%emt 0:00:08]} d6 {[%emt 0:00:00]} 3. d4 {[%emt 0:00:11]} cxd4 {[%emt 0:00:02]} 4. Nxd4 {[%emt 0:00:07]} Nf6 {[%emt 0:00:04]} 5. Nc3 {[%emt 0:00:11]} a6 {[%emt 0:00:05]} 6. Be3 {[%emt 0:00:09]} e5 {[%emt 0:00:06]} 7. Nb3 {[%emt 0:00:07]} Be6 {[%emt 0:00:05]} 8. f3 {[%emt 0:00:09]} h5 {[%emt 0:00:04]} 9. Qd2 {[%emt 0:00:09]} Nbd7 {[%emt 0:00:05]} 10. Nd5 {[%emt 0:00:09]} Bxd5 {[%emt 0:00:06]} 11. exd5 {[%emt 0:00:10]} Qc7 {[%emt 0:00:06]} 12. Na5 {[%emt 0:00:18]} b6 {[%emt 0:02:13]} 13. Nc6 {[%emt 0:00:09]} Nxd5 {[%emt 0:01:25]} 14. Qxd5 {[%emt 0:00:08]} Nf6 {[%emt 0:00:03]} 15. Qb3 {[%emt 0:00:13]} Qxc6 {[%emt 0:00:07]} 16. O-O-O {[%emt 0:00:17]} b5 {[%emt 0:05:26]} 17. Kb1 {[%emt 0:00:10]} d5 {[%emt 0:08:19]} 18. Bg5 {[%emt 0:00:37]} Rd8 {[%emt 0:01:18]} 19. Bd3 {[%emt 0:00:18]} Be7 {[%emt 0:03:08]} 20. Rhe1 {[%emt 0:00:18]} Qe6 {[%emt 0:11:04]} 21. h3 {[%emt 0:17:08]} h4 {[%emt 0:09:34]} 22. a4 {[%emt 0:11:42]} b4 {[%emt 0:01:49]} 23. a5 {[%emt 0:01:10]} Rh5 {[%emt 0:07:40]} 24. Be3 {[%emt 0:07:25]} Kf8 {[%emt 0:01:49]} 25. Rd2 {[%emt 0:05:43]} Qd6 {[%emt 0:11:15]} 26. Bb6 {[%emt 0:09:52]} Ra8 {[%emt 0:00:07]} 27. Be4 {[%emt 0:05:42]} Nxe4 {[%emt 0:01:17]} 28. Rxe4 {[%emt 0:01:43]} d4 {[%emt 0:00:26]} 29. f4 {[%emt 0:00:46]} Qh6 {[%emt 0:03:12]} 30. Rf2 {[%emt 0:05:34]} Rf5 {[%emt 0:01:28]} 31. Qd5 {[%emt 0:04:15]} Rc8 {[%emt 0:04:43]} 32. Rxe5 {[%emt 0:07:30]} Rxe5 {[%emt 0:00:38]} 33. fxe5 {[%emt 0:00:19]} Qg6 {[%emt 0:01:15]} 34. Qd7 {[%emt 0:07:14]} Re8 {[%emt 0:00:46]} 35. Qxd4 {[%emt 0:02:00]} b3 {[%emt 0:00:52]} 36. Qd3 {[%emt 0:02:31]} Qxd3 {[%emt 0:04:11]} 37. cxd3 {[%emt 0:00:07]} Bd8 {[%emt 0:00:30]} 38. Kc1 {[%emt 0:12:26]} Bg5+ {[%emt 0:02:25]} 39. Kd1 {[%emt 0:00:26]} Rxe5 {[%emt 0:00:08]} 40. Re2 {[%emt 0:01:42]} Rxe2 {[%emt 0:02:29]} 41. Kxe2 {[%emt 0:30:14]} Ke7 {[%emt 0:30:27]} 42. d4 {[%emt 0:00:00]} Ke6 {[%emt 0:00:00]} 43. Kd3 {[%emt 0:00:00]} Kd5 {[%emt 0:00:00]} 44. Kc3 {[%emt 0:00:00]} Be3 {[%emt 0:00:00]} 45. Kxb3 {[%emt 0:00:00]} Bxd4 {[%emt 0:00:00]} 46. Bd8 {[%emt 0:00:00]} f6 {[%emt 0:00:00]} 47. Bc7 {[%emt 0:00:00]} Kc6 {[%emt 0:00:00]} 48. Bf4 {[%emt 0:00:00]} Kb5 {[%emt 0:00:00]} 49. Bd2 {[%emt 0:00:00]} Be5 {[%emt 0:00:00]} 50. Kc2 {[%emt 0:00:00]} Bc7 {[%emt 0:00:00]} 51. Be1 {[%emt 0:00:00]} g5 {[%emt 0:00:00]} 52. Bc3 {[%emt 0:00:00]} Be5 {[%emt 0:00:00]} 53. Bd2 {[%emt 0:00:16]} Bc7 {[%emt 0:00:00]} 54. Bc3 {[%emt 0:00:50]} Bd8 {[%emt 0:00:00]} 55. Kd3 {[%emt 0:01:28]} f5 {[%emt 0:00:00]} 56. Bd2 {[%emt 0:03:15]} g4 {[%emt 0:01:07]} 57. Be1 {[%emt 0:00:23]} Bf6 {[%emt 0:06:37]} 58. Ke3 {[%emt 0:01:28]} Bxb2 {[%emt 0:05:05]} 59. Kf4 {[%emt 0:00:36]} gxh3 {[%emt 0:07:42]} 60. gxh3 {[%emt 0:00:10]} Bf6 {[%emt 0:02:28]} 61. Kxf5 {[%emt 0:00:16]} Bd8 {[%emt 0:00:06]} 62. Kg4 {[%emt 0:00:48]} Bxa5 {[%emt 0:00:08]} 63. Bxh4 {[%emt 0:00:06]} 1/2-1/2